[Event "Live Chess"]
[Site "Chess.com"]
[Date "2024.06.02"]
[Round "-"]
[White "McFim"]
[Black "KeithArkell"]
[Result "0-1"]
[WhiteElo "1640"]
[BlackElo "2441"]
[TimeControl "300"]
[EndTime "20:25:47 PDT"]
[Termination "KeithArkell won on time"]

1. e4 {[%clk 0:04:57.5]} 1... c6 {[%clk 0:04:59.2]} 2. d4 {[%clk 0:04:56]} 2...
d5 {[%clk 0:04:59.1]} 3. exd5 {[%clk 0:04:55.7]} 3... cxd5 {[%clk 0:04:58.6]} 4.
Bd3 {[%clk 0:04:55.2]} 4... Nf6 {[%clk 0:04:58.3]} 5. c3 {[%clk 0:04:54.1]} 5...
Nc6 {[%clk 0:04:57.9]} 6. Bf4 {[%clk 0:04:52.6]} 6... Bg4 {[%clk 0:04:57.1]} 7.
Nf3 {[%clk 0:04:51.7]} 7... e6 {[%clk 0:04:55.3]} 8. Nbd2 {[%clk 0:04:50.4]}
8... Bd6 {[%clk 0:04:54.5]} 9. Bxd6 {[%clk 0:04:49.2]} 9... Qxd6 {[%clk
0:04:54.4]} 10. O-O {[%clk 0:04:48.4]} 10... O-O {[%clk 0:04:53.1]} 11. Re1
{[%clk 0:04:47.2]} 11... Rab8 {[%clk 0:04:51.4]} 12. a4 {[%clk 0:04:45.5]} 12...
a6 {[%clk 0:04:49.9]} 13. h3 {[%clk 0:04:40.7]} 13... Bxf3 {[%clk 0:04:48.5]}
14. Nxf3 {[%clk 0:04:36.2]} 14... Qc7 {[%clk 0:04:47.6]} 15. Ne5 {[%clk
0:04:29.3]} 15... Nxe5 {[%clk 0:04:46.7]} 16. Rxe5 {[%clk 0:04:26.9]} 16... g6
{[%clk 0:04:45.4]} 17. Qf3 {[%clk 0:04:16.4]} 17... Kg7 {[%clk 0:04:43.7]} 18.
g4 {[%clk 0:04:13.5]} 18... b5 {[%clk 0:04:41.3]} 19. axb5 {[%clk 0:04:11.2]}
19... axb5 {[%clk 0:04:38.7]} 20. g5 {[%clk 0:04:01.1]} 20... Nd7 {[%clk
0:04:36.6]} 21. Re3 {[%clk 0:03:58.2]} 21... b4 {[%clk 0:04:35.9]} 22. Bf1
{[%clk 0:03:47.7]} 22... bxc3 {[%clk 0:04:31.1]} 23. bxc3 {[%clk 0:03:46.4]}
23... Rfc8 {[%clk 0:04:28.4]} 24. Qg3 {[%clk 0:03:37.1]} 24... Qxg3+ {[%clk
0:04:26.6]} 25. Rxg3 {[%clk 0:03:35.8]} 25... Rb3 {[%clk 0:04:24.2]} 26. Rc1
{[%clk 0:03:22.1]} 26... Nb6 {[%clk 0:04:22.1]} 27. Kg2 {[%clk 0:03:13.1]} 27...
Nc4 {[%clk 0:04:19.8]} 28. Bxc4 {[%clk 0:03:07.9]} 28... Rxc4 {[%clk 0:04:18.8]}
29. Re3 {[%clk 0:03:02.6]} 29... Rb2 {[%clk 0:04:17.4]} 30. Rd1 {[%clk
0:02:56.5]} 30... Rc2 {[%clk 0:04:15.7]} 31. Rdd3 {[%clk 0:02:55.1]} 31... Ra4
{[%clk 0:04:14.7]} 32. Kg3 {[%clk 0:02:53.7]} 32... Ra1 {[%clk 0:04:12.5]} 33.
h4 {[%clk 0:02:42.2]} 33... Rg1+ {[%clk 0:04:09.9]} 34. Kf3 {[%clk 0:02:32.2]}
34... Rf1 {[%clk 0:04:06.6]} 35. Kg3 {[%clk 0:02:18.7]} 35... Rfxf2 {[%clk
0:04:04.2]} 36. Rf3 {[%clk 0:02:17.1]} 36... Rxf3+ {[%clk 0:04:03.2]} 37. Rxf3
{[%clk 0:02:15.1]} 37... Rc1 {[%clk 0:04:01.5]} 38. Kg4 {[%clk 0:02:12.2]} 38...
Rg1+ {[%clk 0:04:00.2]} 39. Kh3 {[%clk 0:02:10.5]} 39... Rc1 {[%clk 0:03:56.2]}
40. Kg4 {[%clk 0:02:08.8]} 40... Rc2 {[%clk 0:03:54.3]} 41. Kg3 {[%clk
0:02:04.2]} 41... Ra2 {[%clk 0:03:53.1]} 42. Kg4 {[%clk 0:02:02.6]} 42... Ra7
{[%clk 0:03:52]} 43. Kf4 {[%clk 0:02:00.1]} 43... h6 {[%clk 0:03:51.4]} 44. Ke5
{[%clk 0:01:55.9]} 44... hxg5 {[%clk 0:03:50]} 45. hxg5 {[%clk 0:01:54.5]} 45...
Ra1 {[%clk 0:03:49.2]} 46. Rg3 {[%clk 0:01:51.8]} 46... Rf1 {[%clk 0:03:47.7]}
47. Kd6 {[%clk 0:01:46.7]} 47... Rf5 {[%clk 0:03:45.9]} 48. Kc5 {[%clk
0:01:43.7]} 48... Kf8 {[%clk 0:03:45]} 49. Kb4 {[%clk 0:01:41.1]} 49... Ke7
{[%clk 0:03:44.2]} 50. Rg4 {[%clk 0:01:39.4]} 50... f6 {[%clk 0:03:42.4]} 51.
gxf6+ {[%clk 0:01:37.7]} 51... Kxf6 {[%clk 0:03:41.7]} 52. c4 {[%clk 0:01:37.1]}
52... dxc4 {[%clk 0:03:40.7]} 53. Kxc4 {[%clk 0:01:35.4]} 53... g5 {[%clk
0:03:40.3]} 54. Kd3 {[%clk 0:01:32.3]} 54... Rf4 {[%clk 0:03:32.8]} 55. Rg3
{[%clk 0:01:25.2]} 55... Kf5 {[%clk 0:03:31.5]} 56. Ke3 {[%clk 0:01:18.6]} 56...
g4 {[%clk 0:03:29.4]} 57. Rg1 {[%clk 0:01:12.8]} 57... Re4+ {[%clk 0:03:28]} 58.
Kd3 {[%clk 0:01:11.1]} 58... Rf4 {[%clk 0:03:26.5]} 59. Ke3 {[%clk 0:01:09.5]}
59... Rf3+ {[%clk 0:03:25.6]} 60. Ke2 {[%clk 0:01:08]} 60... Ra3 {[%clk
0:03:24.6]} 61. Rd1 {[%clk 0:00:59.1]} 61... Ke4 {[%clk 0:03:23.4]} 62. Kf2
{[%clk 0:00:57.7]} 62... Rf3+ {[%clk 0:03:17.5]} 63. Kg2 {[%clk 0:00:56.1]}
63... Re3 {[%clk 0:03:10.3]} 64. Rd2 {[%clk 0:00:53.4]} 64... Kd5 {[%clk
0:03:09.2]} 65. Kf2 {[%clk 0:00:39.4]} 65... Re4 {[%clk 0:03:07.6]} 66. Kg3
{[%clk 0:00:33.5]} 66... Rxd4 {[%clk 0:03:06.5]} 67. Ra2 {[%clk 0:00:26.2]}
67... e5 {[%clk 0:03:04.7]} 68. Ra5+ {[%clk 0:00:23.4]} 68... Ke6 {[%clk
0:03:03.6]} 69. Ra6+ {[%clk 0:00:20.3]} 69... Kf5 {[%clk 0:03:02.6]} 70. Ra8
{[%clk 0:00:19.1]} 70... Rd3+ {[%clk 0:03:02]} 71. Kf2 {[%clk 0:00:17.8]} 71...
g3+ {[%clk 0:03:01.3]} 72. Kg2 {[%clk 0:00:16.6]} 72... Kf4 {[%clk 0:03:00.2]}
73. Rf8+ {[%clk 0:00:14.8]} 73... Ke4 {[%clk 0:02:59.5]} 74. Rf7 {[%clk
0:00:13]} 74... Rc3 {[%clk 0:02:58.3]} 75. Rf8 {[%clk 0:00:10.9]} 75... Kd5
{[%clk 0:02:57.2]} 76. Rd8+ {[%clk 0:00:09.5]} 76... Ke6 {[%clk 0:02:56.4]} 77.
Re8+ {[%clk 0:00:08.3]} 77... Kf6 {[%clk 0:02:55.6]} 78. Rf8+ {[%clk 0:00:07.3]}
78... Ke7 {[%clk 0:02:54.9]} 79. Rg8 {[%clk 0:00:06.3]} 79... Ke6 {[%clk
0:02:53.6]} 80. Rxg3 {[%clk 0:00:04.7]} 80... Rxg3+ {[%clk 0:02:51.6]} 81. Kxg3
{[%clk 0:00:04.6]} 81... Kd5 {[%clk 0:02:51.1]} 82. Kf3 {[%clk 0:00:02.1]} 82...
Kd4 {[%clk 0:02:50]} 83. Kf2 {[%clk 0:00:00.7]} 83... Kd3 {[%clk 0:02:49.5]} 0-1

[Event "Live Chess"]
[Site "Chess.com"]
[Date "2024.06.02"]
[Round "-"]
[White "IgorSchukin"]
[Black "Dhaydon19"]
[Result "0-1"]
[WhiteElo "1757"]
[BlackElo "2686"]
[TimeControl "300"]
[EndTime "20:25:55 PDT"]
[Termination "Dhaydon19 won on time"]

1. e4 {[%clk 0:04:54.1]} 1... c6 {[%clk 0:04:59.3]} 2. d4 {[%clk 0:04:52.5]}
2... d5 {[%clk 0:04:58.7]} 3. Nc3 {[%clk 0:04:51.9]} 3... dxe4 {[%clk 0:04:58]}
4. Nxe4 {[%clk 0:04:51]} 4... Nf6 {[%clk 0:04:57.7]} 5. Nxf6+ {[%clk 0:04:50.2]}
5... exf6 {[%clk 0:04:57.5]} 6. g3 {[%clk 0:04:49.4]} 6... Bd6 {[%clk
0:04:57.1]} 7. Bg2 {[%clk 0:04:48.5]} 7... O-O {[%clk 0:04:56.8]} 8. Ne2 {[%clk
0:04:47.8]} 8... Nd7 {[%clk 0:04:56.5]} 9. O-O {[%clk 0:04:46.8]} 9... g6 {[%clk
0:04:55.9]} 10. Bf4 {[%clk 0:04:44]} 10... Nb6 {[%clk 0:04:53.9]} 11. Bxd6
{[%clk 0:04:42]} 11... Qxd6 {[%clk 0:04:53.6]} 12. c4 {[%clk 0:04:39.5]} 12...
Nxc4 {[%clk 0:04:52.2]} 13. Qc2 {[%clk 0:04:33]} 13... Nb6 {[%clk 0:04:50.9]}
14. Rad1 {[%clk 0:04:30.5]} 14... Bf5 {[%clk 0:04:49.3]} 15. Be4 {[%clk
0:04:27.7]} 15... Bxe4 {[%clk 0:04:47.5]} 16. Qxe4 {[%clk 0:04:26.6]} 16... Rfe8
{[%clk 0:04:47.2]} 17. Qf3 {[%clk 0:04:25.7]} 17... Rad8 {[%clk 0:04:45.4]} 18.
Rfe1 {[%clk 0:04:23.3]} 18... Kg7 {[%clk 0:04:44.7]} 19. h4 {[%clk 0:04:20.5]}
19... h5 {[%clk 0:04:43.2]} 20. Nf4 {[%clk 0:04:16.3]} 20... Rxe1+ {[%clk
0:04:40.8]} 21. Rxe1 {[%clk 0:04:14.8]} 21... Qxd4 {[%clk 0:04:37.2]} 22. Re4
{[%clk 0:04:07.8]} 22... Qd1+ {[%clk 0:04:35.4]} 23. Qxd1 {[%clk 0:04:03.9]}
23... Rxd1+ {[%clk 0:04:35.1]} 24. Kg2 {[%clk 0:04:02.7]} 24... Rd7 {[%clk
0:04:33.6]} 25. b3 {[%clk 0:03:58.6]} 25... Nd5 {[%clk 0:04:29.6]} 26. Ne2
{[%clk 0:03:52.6]} 26... f5 {[%clk 0:04:26.8]} 27. Rc4 {[%clk 0:03:49.7]} 27...
Re7 {[%clk 0:04:24.9]} 28. Nd4 {[%clk 0:03:46.9]} 28... Re4 {[%clk 0:04:22.9]}
29. f3 {[%clk 0:03:44.3]} 29... Re1 {[%clk 0:04:12.8]} 30. Kf2 {[%clk
0:03:40.6]} 30... Rd1 {[%clk 0:04:11.8]} 31. Ne2 {[%clk 0:03:32.7]} 31... Rd2
{[%clk 0:04:09.4]} 32. a4 {[%clk 0:03:30.3]} 32... Rb2 {[%clk 0:04:06.9]} 33. b4
{[%clk 0:03:20.5]} 33... Rxb4 {[%clk 0:04:04.3]} 34. Rxb4 {[%clk 0:03:18]} 34...
Nxb4 {[%clk 0:04:03.8]} 35. Ke3 {[%clk 0:03:16.7]} 35... Kf6 {[%clk 0:04:01.1]}
36. Kd4 {[%clk 0:03:15.2]} 36... b6 {[%clk 0:04:00.3]} 37. f4 {[%clk 0:03:11.5]}
37... Ke6 {[%clk 0:03:58.5]} 38. Ng1 {[%clk 0:03:05.5]} 38... c5+ {[%clk
0:03:54.7]} 39. Kc4 {[%clk 0:03:03.8]} 39... Nd5 {[%clk 0:03:52.7]} 40. Nf3
{[%clk 0:03:01.1]} 40... Nc7 {[%clk 0:03:50.8]} 41. Ne5 {[%clk 0:02:58.7]} 41...
a6 {[%clk 0:03:48.3]} 42. a5 {[%clk 0:02:53.3]} 42... bxa5 {[%clk 0:03:47]} 43.
Kxc5 {[%clk 0:02:52.1]} 43... Nd5 {[%clk 0:03:46.2]} 44. Nc4 {[%clk 0:02:47.3]}
44... Nf6 {[%clk 0:03:44.1]} 45. Nxa5 {[%clk 0:02:43.7]} 45... Ne4+ {[%clk
0:03:42.1]} 46. Kd4 {[%clk 0:02:41.7]} 46... Nxg3 {[%clk 0:03:41.7]} 47. Nb3
{[%clk 0:02:36.1]} 47... Ne2+ {[%clk 0:03:40.3]} 48. Ke3 {[%clk 0:02:34.4]}
48... Nc3 {[%clk 0:03:39.7]} 49. Nc5+ {[%clk 0:02:33.2]} 49... Kf6 {[%clk
0:03:36.9]} 50. Nxa6 {[%clk 0:02:32.3]} 50... Ne4 {[%clk 0:03:30.2]} 51. Nc7
{[%clk 0:02:28.4]} 51... Nd6 {[%clk 0:03:27.2]} 52. Nd5+ {[%clk 0:02:24.4]}
52... Ke6 {[%clk 0:03:26.4]} 53. Nc7+ {[%clk 0:02:22.1]} 53... Kd7 {[%clk
0:03:25.4]} 54. Nd5 {[%clk 0:02:20.3]} 54... Ne4 {[%clk 0:03:24.7]} 55. Nb6+
{[%clk 0:02:15.4]} 55... Ke6 {[%clk 0:03:20.7]} 56. Nc4 {[%clk 0:02:11.1]} 56...
f6 {[%clk 0:03:19.4]} 57. Nb2 {[%clk 0:02:03]} 57... Nc3 {[%clk 0:03:18]} 58.
Nd3 {[%clk 0:01:59.8]} 58... Nd5+ {[%clk 0:03:16.8]} 59. Kf3 {[%clk 0:01:58.9]}
59... Kd6 {[%clk 0:03:15.9]} 60. Kg3 {[%clk 0:01:54.8]} 60... Kc6 {[%clk
0:03:14.2]} 61. Kf3 {[%clk 0:01:52.4]} 61... Kb5 {[%clk 0:03:12]} 62. Nb2 {[%clk
0:01:37.1]} 62... Nb6 {[%clk 0:03:07.8]} 63. Nd1 {[%clk 0:01:32.1]} 63... Kc5
{[%clk 0:03:05.9]} 64. Ke3 {[%clk 0:01:28.1]} 64... Nd5+ {[%clk 0:03:02.4]} 65.
Kf3 {[%clk 0:01:26.5]} 65... Kd4 {[%clk 0:03:02.1]} 66. Nf2 {[%clk 0:01:23.7]}
66... Nc3 {[%clk 0:03:00.7]} 67. Nh3 {[%clk 0:01:12.6]} 67... Ne4 {[%clk
0:02:57.6]} 68. Ng1 {[%clk 0:01:07.9]} 68... Kd3 {[%clk 0:02:55]} 69. Nh3 {[%clk
0:01:00.6]} 69... Nd2+ {[%clk 0:02:53.9]} 70. Kf2 {[%clk 0:00:58.6]} 70... Ke4
{[%clk 0:02:52.8]} 71. Kg3 {[%clk 0:00:52.7]} 71... Nf1+ {[%clk 0:02:49.1]} 72.
Kf2 {[%clk 0:00:49.6]} 72... Ne3 {[%clk 0:02:47.4]} 73. Kg3 {[%clk 0:00:47.1]}
73... Nc2 {[%clk 0:02:43.4]} 74. Nf2+ {[%clk 0:00:43.6]} 74... Kd5 {[%clk
0:02:40.4]} 75. Nd3 {[%clk 0:00:40.8]} 75... Ke6 {[%clk 0:02:39.1]} 76. Nc5+
{[%clk 0:00:38.4]} 76... Kf7 {[%clk 0:02:37.9]} 77. Nd7 {[%clk 0:00:31.2]} 77...
Nd4 {[%clk 0:02:36.5]} 78. Nc5 {[%clk 0:00:26.1]} 78... Ne6 {[%clk 0:02:35.2]}
79. Nd3 {[%clk 0:00:23.5]} 79... Kg7 {[%clk 0:02:27.5]} 80. Kf3 {[%clk
0:00:21.5]} 80... g5 {[%clk 0:02:24.4]} 81. fxg5 {[%clk 0:00:20]} 81... fxg5
{[%clk 0:02:24]} 82. hxg5 {[%clk 0:00:18.5]} 82... Nxg5+ {[%clk 0:02:23.2]} 83.
Kf4 {[%clk 0:00:17.7]} 83... Kf6 {[%clk 0:02:21.8]} 84. Nc5 {[%clk 0:00:13]}
84... Ne6+ {[%clk 0:02:20.7]} 85. Nxe6 {[%clk 0:00:10.2]} 85... Kxe6 {[%clk
0:02:20.3]} 86. Kg5 {[%clk 0:00:09]} 86... Ke5 {[%clk 0:02:19.7]} 87. Kxh5
{[%clk 0:00:08.5]} 87... f4 {[%clk 0:02:18.8]} 88. Kh4 {[%clk 0:00:07.9]} 88...
Ke4 {[%clk 0:02:18.3]} 89. Kh3 {[%clk 0:00:06.7]} 89... Ke3 {[%clk 0:02:17.7]}
90. Kg2 {[%clk 0:00:05.7]} 90... Ke2 {[%clk 0:02:16.9]} 91. Kg1 {[%clk
0:00:04.4]} 91... f3 {[%clk 0:02:16.3]} 92. Kh2 {[%clk 0:00:03.5]} 92... f2
{[%clk 0:02:15.4]} 93. Kg3 {[%clk 0:00:01.2]} 93... f1=Q {[%clk 0:02:14.3]} 0-1

[Event "Live Chess"]
[Site "Chess.com"]
[Date "2024.06.02"]
[Round "-"]
[White "Mangoalo"]
[Black "juniortay"]
[Result "0-1"]
[WhiteElo "1067"]
[BlackElo "2419"]
[TimeControl "300"]
[EndTime "20:26:20 PDT"]
[Termination "juniortay won by resignation"]

1. e4 {[%clk 0:04:57]} 1... e5 {[%clk 0:04:59]} 2. f4 {[%clk 0:04:55.3]} 2...
Nf6 {[%clk 0:04:58.9]} 3. Nc3 {[%clk 0:04:52.6]} 3... d5 {[%clk 0:04:57.8]} 4.
exd5 {[%clk 0:04:50.6]} 4... e4 {[%clk 0:04:57.1]} 5. d3 {[%clk 0:04:43.2]} 5...
Bb4 {[%clk 0:04:55.7]} 6. Bd2 {[%clk 0:04:20.2]} 6... e3 {[%clk 0:04:53]} 7. Bc1
{[%clk 0:04:17.5]} 7... O-O {[%clk 0:04:50.9]} 8. Ne2 {[%clk 0:04:16]} 8... Nxd5
{[%clk 0:04:48.7]} 9. a3 {[%clk 0:04:12.4]} 9... Ba5 {[%clk 0:04:46.9]} 10. b4
{[%clk 0:04:07.8]} 10... Nxc3 {[%clk 0:04:44.7]} 11. Nxc3 {[%clk 0:04:03.8]}
11... Bb6 {[%clk 0:04:44.3]} 12. Qe2 {[%clk 0:04:01]} 12... Nc6 {[%clk
0:04:35.9]} 13. Bb2 {[%clk 0:03:55.9]} 13... Nd4 {[%clk 0:04:34.1]} 14. O-O-O
{[%clk 0:03:53.5]} 14... Nxe2+ {[%clk 0:04:31.9]} 15. Bxe2 {[%clk 0:03:53.4]}
15... a5 {[%clk 0:04:29.8]} 16. b5 {[%clk 0:03:51]} 16... c6 {[%clk 0:04:28.8]}
17. a4 {[%clk 0:03:50.9]} 17... cxb5 {[%clk 0:04:27.8]} 18. axb5 {[%clk
0:03:50.8]} 18... Bd4 {[%clk 0:04:22.4]} 19. Na4 {[%clk 0:03:48.4]} 19... Be6
{[%clk 0:04:18.2]} 20. Bxd4 {[%clk 0:03:46.5]} 20... Qxd4 {[%clk 0:04:16.3]} 21.
c4 {[%clk 0:03:41.8]} 21... Qa1+ {[%clk 0:04:13.8]} 22. Kc2 {[%clk 0:03:40.3]}
22... Qxa4+ {[%clk 0:04:13.4]} 0-1

[Event "Live Chess"]
[Site "Chess.com"]
[Date "2024.06.02"]
[Round "-"]
[White "ua_eagerbeaver"]
[Black "Mangoalo"]
[Result "1-0"]
[WhiteElo "2035"]
[BlackElo "1067"]
[TimeControl "300"]
[EndTime "20:28:23 PDT"]
[Termination "ua_eagerbeaver won by checkmate"]

1. e3 {[%clk 0:04:58]} 1... e6 {[%clk 0:04:59.9]} 2. d4 {[%clk 0:04:57.9]} 2...
d5 {[%clk 0:04:58.9]} 3. c4 {[%clk 0:04:56.8]} 3... Nc6 {[%clk 0:04:58.8]} 4.
Nc3 {[%clk 0:04:55.6]} 4... Bb4 {[%clk 0:04:55.3]} 5. Qb3 {[%clk 0:04:53.9]}
5... Bxc3+ {[%clk 0:04:53.3]} 6. bxc3 {[%clk 0:04:53.8]} 6... dxc4 {[%clk
0:04:51.6]} 7. Bxc4 {[%clk 0:04:52.2]} 7... Nf6 {[%clk 0:04:50]} 8. Nf3 {[%clk
0:04:50.9]} 8... O-O {[%clk 0:04:48.6]} 9. Bd3 {[%clk 0:04:50.2]} 9... Re8
{[%clk 0:04:48.5]} 10. O-O {[%clk 0:04:48.8]} 10... h6 {[%clk 0:04:47.7]} 11. a4
{[%clk 0:04:45.6]} 11... a5 {[%clk 0:04:44.2]} 12. Bb1 {[%clk 0:04:39.7]} 12...
b6 {[%clk 0:04:42.9]} 13. Qc2 {[%clk 0:04:38.5]} 13... Ne7 {[%clk 0:04:40.3]}
14. Ne5 {[%clk 0:04:37.1]} 14... Ned5 {[%clk 0:04:40.2]} 15. e4 {[%clk
0:04:29.7]} 15... Ne7 {[%clk 0:04:35]} 16. Ba3 {[%clk 0:04:26]} 16... Nd7 {[%clk
0:04:33.1]} 17. Ng4 {[%clk 0:04:19.4]} 17... Ng6 {[%clk 0:04:14.1]} 18. f4
{[%clk 0:04:13.9]} 18... f5 {[%clk 0:04:08.6]} 19. Ne5 {[%clk 0:04:10.5]} 19...
Ngxe5 {[%clk 0:04:05.6]} 20. fxe5 {[%clk 0:04:10.4]} 20... fxe4 {[%clk
0:04:02.2]} 21. Qxe4 {[%clk 0:04:10.3]} 21... Rf8 {[%clk 0:04:01.1]} 22. Qh7#
{[%clk 0:04:09.4]} 1-0

[Event "Live Chess"]
[Site "Chess.com"]
[Date "2024.06.02"]
[Round "-"]
[White "ShanthamGrarks"]
[Black "Mikhail_Golubev"]
[Result "1-0"]
[WhiteElo "1924"]
[BlackElo "2529"]
[TimeControl "300"]
[EndTime "20:28:46 PDT"]
[Termination "ShanthamGrarks won on time"]

1. d4 {[%clk 0:04:51.5]} 1... g6 {[%clk 0:04:58.1]} 2. Nc3 {[%clk 0:04:51]} 2...
d5 {[%clk 0:04:55.5]} 3. e4 {[%clk 0:04:50.1]} 3... dxe4 {[%clk 0:04:52.9]} 4.
f3 {[%clk 0:04:49.7]} 4... e3 {[%clk 0:04:50.5]} 5. Bxe3 {[%clk 0:04:47.7]} 5...
Bg7 {[%clk 0:04:49.6]} 6. Bc4 {[%clk 0:04:46.5]} 6... Nf6 {[%clk 0:04:46.5]} 7.
Nge2 {[%clk 0:04:45.6]} 7... O-O {[%clk 0:04:45.4]} 8. Qd2 {[%clk 0:04:44.4]}
8... Nbd7 {[%clk 0:04:19.3]} 9. h4 {[%clk 0:04:43.7]} 9... Nb6 {[%clk
0:04:13.9]} 10. Bb3 {[%clk 0:04:41.7]} 10... a5 {[%clk 0:04:07.1]} 11. a4 {[%clk
0:04:37.8]} 11... h5 {[%clk 0:03:48.1]} 12. Nf4 {[%clk 0:04:35.7]} 12... Bf5
{[%clk 0:03:23.3]} 13. O-O-O {[%clk 0:04:32.7]} 13... c6 {[%clk 0:03:08.6]} 14.
Rhg1 {[%clk 0:04:23.7]} 14... Nbd5 {[%clk 0:03:01]} 15. Ncxd5 {[%clk 0:04:18.8]}
15... cxd5 {[%clk 0:02:55.9]} 16. g4 {[%clk 0:04:07.6]} 16... hxg4 {[%clk
0:02:54.8]} 17. fxg4 {[%clk 0:04:06.5]} 17... Nxg4 {[%clk 0:01:52]} 18. Rxg4
{[%clk 0:03:57.6]} 18... Bxg4 {[%clk 0:01:48.1]} 19. Rg1 {[%clk 0:03:56.2]}
19... Qd7 {[%clk 0:01:24.6]} 20. h5 {[%clk 0:03:53.5]} 20... gxh5 {[%clk
0:01:19]} 21. Bxd5 {[%clk 0:03:47.5]} 21... Ra6 {[%clk 0:00:56.6]} 22. Bb3
{[%clk 0:03:34.6]} 22... Rd6 {[%clk 0:00:53.7]} 23. c3 {[%clk 0:03:25]} 23... e5
{[%clk 0:00:48.9]} 24. Nxh5 {[%clk 0:03:21.2]} 24... Bxh5 {[%clk 0:00:44.6]} 25.
Rxg7+ {[%clk 0:03:19.7]} 25... Kxg7 {[%clk 0:00:43.3]} 26. Qg2+ {[%clk
0:03:13.8]} 26... Rg6 {[%clk 0:00:40.3]} 27. Qh2 {[%clk 0:03:12.8]} 27... Qg4
{[%clk 0:00:23.9]} 28. Qxe5+ {[%clk 0:03:08.7]} 28... Kh7 {[%clk 0:00:21.2]} 29.
Bc2 {[%clk 0:03:01.3]} 29... Qf3 {[%clk 0:00:10.7]} 30. Kb1 {[%clk 0:02:53.5]}
30... Qf1+ {[%clk 0:00:07.7]} 31. Ka2 {[%clk 0:02:51.9]} 31... Qc4+ {[%clk
0:00:06.8]} 32. b3 {[%clk 0:02:48.5]} 32... Qe2 {[%clk 0:00:05.3]} 33. Kb1
{[%clk 0:02:41.5]} 33... f5 {[%clk 0:00:04.6]} 34. Qe7+ {[%clk 0:02:35.1]} 34...
Kg8 {[%clk 0:00:04.2]} 35. b4 {[%clk 0:02:21.8]} 35... Rf7 {[%clk 0:00:04.1]}
36. Qe8+ {[%clk 0:02:13.5]} 36... Kg7 {[%clk 0:00:02.2]} 37. bxa5 {[%clk
0:02:05.9]} 1-0

[Event "Live Chess"]
[Site "Chess.com"]
[Date "2024.06.02"]
[Round "-"]
[White "McFim"]
[Black "IgorSchukin"]
[Result "0-1"]
[WhiteElo "1635"]
[BlackElo "1762"]
[TimeControl "300"]
[EndTime "20:28:54 PDT"]
[Termination "IgorSchukin won by resignation"]

1. e4 {[%clk 0:04:58.1]} 1... c5 {[%clk 0:04:58.6]} 2. Nf3 {[%clk 0:04:56.5]}
2... e6 {[%clk 0:04:58.1]} 3. Nc3 {[%clk 0:04:53.2]} 3... Nc6 {[%clk 0:04:57.3]}
4. Bb5 {[%clk 0:04:51.2]} 4... Qc7 {[%clk 0:04:55.8]} 5. Bxc6 {[%clk 0:04:49.4]}
5... Qxc6 {[%clk 0:04:54.6]} 6. d3 {[%clk 0:04:49.3]} 6... a6 {[%clk 0:04:53.5]}
7. O-O {[%clk 0:04:47.8]} 7... Nf6 {[%clk 0:04:52.3]} 8. h3 {[%clk 0:04:46.2]}
8... Be7 {[%clk 0:04:50.1]} 9. b3 {[%clk 0:04:44.6]} 9... b5 {[%clk 0:04:49.2]}
10. Bb2 {[%clk 0:04:43]} 10... Bb7 {[%clk 0:04:47.9]} 11. Qe2 {[%clk 0:04:22.8]}
11... O-O {[%clk 0:04:33.2]} 12. Nd1 {[%clk 0:04:20.8]} 12... Rae8 {[%clk
0:04:30.1]} 13. Ne3 {[%clk 0:04:15.1]} 13... d5 {[%clk 0:04:28.2]} 14. e5 {[%clk
0:04:12.7]} 14... Nd7 {[%clk 0:04:25.3]} 15. c4 {[%clk 0:04:09.1]} 15... f6
{[%clk 0:04:22.4]} 16. exf6 {[%clk 0:03:37.8]} 16... Bxf6 {[%clk 0:04:20]} 17.
Bxf6 {[%clk 0:03:35.7]} 17... Nxf6 {[%clk 0:04:18.8]} 18. Qd2 {[%clk 0:03:23.5]}
18... d4 {[%clk 0:04:10.9]} 19. Ng4 {[%clk 0:03:20.7]} 19... Nxg4 {[%clk
0:04:08]} 20. hxg4 {[%clk 0:03:19]} 20... Rxf3 {[%clk 0:04:06]} 21. gxf3 {[%clk
0:03:15.9]} 21... Qxf3 {[%clk 0:04:05]} 0-1

[Event "Live Chess"]
[Site "Chess.com"]
[Date "2024.06.02"]
[Round "-"]
[White "Delacorta"]
[Black "ua_eagerbeaver"]
[Result "0-1"]
[WhiteElo "1540"]
[BlackElo "2036"]
[TimeControl "300"]
[EndTime "20:30:06 PDT"]
[Termination "ua_eagerbeaver won by resignation"]

1. d4 {[%clk 0:04:56.8]} 1... c6 {[%clk 0:04:59.9]} 2. Nf3 {[%clk 0:04:55.3]}
2... d5 {[%clk 0:04:59.8]} 3. e3 {[%clk 0:04:54.3]} 3... Nf6 {[%clk 0:04:59.5]}
4. Nbd2 {[%clk 0:04:52]} 4... Bg4 {[%clk 0:04:59.1]} 5. Be2 {[%clk 0:04:50.3]}
5... e6 {[%clk 0:04:58.3]} 6. b3 {[%clk 0:04:49]} 6... Bd6 {[%clk 0:04:57.5]} 7.
Bb2 {[%clk 0:04:47.7]} 7... O-O {[%clk 0:04:56.9]} 8. h3 {[%clk 0:04:45.9]} 8...
Bh5 {[%clk 0:04:55.9]} 9. g4 {[%clk 0:04:43.1]} 9... Bg6 {[%clk 0:04:54.9]} 10.
Ne5 {[%clk 0:04:40.3]} 10... Nbd7 {[%clk 0:04:50.9]} 11. Nxg6 {[%clk 0:04:37.3]}
11... fxg6 {[%clk 0:04:50.6]} 12. f4 {[%clk 0:04:31.3]} 12... Qc7 {[%clk
0:04:49.3]} 13. a4 {[%clk 0:04:23.9]} 13... Bxf4 {[%clk 0:04:47.8]} 14. exf4
{[%clk 0:04:22.3]} 14... Qxf4 {[%clk 0:04:47.7]} 15. Rf1 {[%clk 0:04:17.1]}
15... Qg3+ {[%clk 0:04:46.7]} 16. Rf2 {[%clk 0:04:15.4]} 16... Ne4 {[%clk
0:04:46.1]} 17. Nxe4 {[%clk 0:04:14.4]} 17... dxe4 {[%clk 0:04:46]} 18. Kd2
{[%clk 0:04:07.9]} 18... e3+ {[%clk 0:04:45.3]} 19. Kc1 {[%clk 0:04:06.7]} 19...
exf2 {[%clk 0:04:45.2]} 20. d5 {[%clk 0:04:02.8]} 20... exd5 {[%clk 0:04:42.8]}
21. Qf1 {[%clk 0:03:53.5]} 21... Rae8 {[%clk 0:04:38.1]} 0-1